[Event "Early-Titled-Tuesday-Blitz-September-12-2023"]
[Site "Chess.com"]
[Date "2023.09.12"]
[Round "11"]
[White "Zavgorodniy_Sergiy"]
[Black "tylityli"]
[Result "1-0"]
[WhiteElo "2525"]
[BlackElo "2330"]
[TimeControl "180+1"]
[EndTime "10:04:54 PDT"]
[Termination "Zavgorodniy_Sergiy won by resignation"]

1. d4 {[%clk 0:03:00.9]} 1... Nf6 {[%clk 0:02:58.8]} 2. c4 {[%clk 0:03:00.8]}
2... e6 {[%clk 0:02:58.9]} 3. Nf3 {[%clk 0:03:00.8]} 3... Bb4+ {[%clk
0:02:59.3]} 4. Nbd2 {[%clk 0:03:00.3]} 4... b6 {[%clk 0:02:59]} 5. g3 {[%clk
0:03:00.4]} 5... Bb7 {[%clk 0:02:59.5]} 6. Bg2 {[%clk 0:03:00.6]} 6... O-O
{[%clk 0:03:00.1]} 7. O-O {[%clk 0:03:00.5]} 7... Bxd2 {[%clk 0:03:00.8]} 8.
Qxd2 {[%clk 0:03:01.4]} 8... a5 {[%clk 0:03:00.9]} 9. b3 {[%clk 0:03:01.3]} 9...
Be4 {[%clk 0:03:00.3]} 10. Bb2 {[%clk 0:03:00.8]} 10... d5 {[%clk 0:02:58.7]}
11. Rac1 {[%clk 0:03:00.7]} 11... Nbd7 {[%clk 0:02:58.3]} 12. Rfd1 {[%clk
0:03:00.8]} 12... Qe7 {[%clk 0:02:53.5]} 13. Ne1 {[%clk 0:03:00.8]} 13... Bxg2
{[%clk 0:02:52.7]} 14. Nxg2 {[%clk 0:03:01.7]} 14... c5 {[%clk 0:02:48]} 15.
cxd5 {[%clk 0:03:00.9]} 15... Nxd5 {[%clk 0:02:45.8]} 16. Nf4 {[%clk 0:02:58.7]}
16... Nxf4 {[%clk 0:02:41.7]} 17. Qxf4 {[%clk 0:02:59.6]} 17... a4 {[%clk
0:02:35.6]} 18. dxc5 {[%clk 0:02:58.4]} 18... axb3 {[%clk 0:02:27.3]} 19. axb3
{[%clk 0:02:51.1]} 19... Nxc5 {[%clk 0:02:23.9]} 20. Qb4 {[%clk 0:02:44.7]}
20... Ra2 {[%clk 0:02:18]} 21. Rd2 {[%clk 0:02:34.5]} 21... Qg5 {[%clk 0:02:07]}
22. Rcd1 {[%clk 0:02:29.8]} 22... Qf5 {[%clk 0:01:49.2]} 23. f3 {[%clk 0:02:22]}
23... h5 {[%clk 0:01:40.7]} 24. Kg2 {[%clk 0:02:04.9]} 24... Qg5 {[%clk
0:01:03.4]} 25. Bd4 {[%clk 0:01:55.4]} 25... Rxd2 {[%clk 0:01:00.9]} 26. Rxd2
{[%clk 0:01:56.3]} 26... Rd8 {[%clk 0:00:52.5]} 27. h4 {[%clk 0:01:42.4]} 27...
Qf5 {[%clk 0:00:37.6]} 28. Qxb6 {[%clk 0:01:34.9]} 28... Rc8 {[%clk 0:00:26.9]}
29. Bxc5 {[%clk 0:01:27]} 29... Rxc5 {[%clk 0:00:20.2]} 30. b4 {[%clk
0:01:24.9]} 30... Rb5 {[%clk 0:00:19.4]} 31. Qd4 {[%clk 0:01:20.5]} 31... Rd5
{[%clk 0:00:17.8]} 32. Qc3 {[%clk 0:01:17.7]} 32... Rb5 {[%clk 0:00:09.6]} 33.
Qc4 {[%clk 0:01:12.9]} 33... Qb1 {[%clk 0:00:07.6]} 34. Qxb5 {[%clk 0:01:10.4]}
1-0

[Event "Early-Titled-Tuesday-Blitz-September-12-2023"]
[Site "Chess.com"]
[Date "2023.09.12"]
[Round "11"]
[White "ChainedDowntohell"]
[Black "APOKALIPSA13"]
[Result "1/2-1/2"]
[WhiteElo "2468"]
[BlackElo "2284"]
[TimeControl "180+1"]
[EndTime "10:04:59 PDT"]
[Termination "Game drawn by repetition"]

1. a3 {[%clk 0:02:29.4]} 1... e5 {[%clk 0:03:00.9]} 2. c4 {[%clk 0:02:25.5]}
2... a5 {[%clk 0:02:57.6]} 3. Nc3 {[%clk 0:02:23.7]} 3... Nc6 {[%clk 0:02:55.6]}
4. Nf3 {[%clk 0:02:22.7]} 4... f5 {[%clk 0:02:54.4]} 5. d3 {[%clk 0:02:08.8]}
5... Nf6 {[%clk 0:02:50.7]} 6. Bg5 {[%clk 0:01:58.7]} 6... Bc5 {[%clk
0:02:42.4]} 7. e3 {[%clk 0:01:54.8]} 7... d6 {[%clk 0:02:39]} 8. Nd5 {[%clk
0:01:53.1]} 8... Be6 {[%clk 0:02:35.8]} 9. Bxf6 {[%clk 0:01:49.2]} 9... gxf6
{[%clk 0:02:34.9]} 10. Nh4 {[%clk 0:01:47.9]} 10... O-O {[%clk 0:02:29.9]} 11.
Be2 {[%clk 0:01:36.9]} 11... Ne7 {[%clk 0:02:22.6]} 12. Nxe7+ {[%clk 0:01:29.9]}
12... Qxe7 {[%clk 0:02:21.3]} 13. O-O {[%clk 0:01:26.5]} 13... Kh8 {[%clk
0:02:19.7]} 14. Kh1 {[%clk 0:01:20.5]} 14... Rg8 {[%clk 0:02:16.8]} 15. d4
{[%clk 0:01:17.5]} 15... Bb6 {[%clk 0:02:12.4]} 16. f4 {[%clk 0:01:16.7]} 16...
Bd7 {[%clk 0:01:59.8]} 17. Bd3 {[%clk 0:01:07.4]} 17... e4 {[%clk 0:01:58.9]}
18. Bc2 {[%clk 0:01:03.6]} 18... Rg4 {[%clk 0:01:55.2]} 19. g3 {[%clk
0:00:58.3]} 19... Rag8 {[%clk 0:01:53.9]} 20. Qd2 {[%clk 0:00:50.2]} 20... Qg7
{[%clk 0:01:51.2]} 21. b4 {[%clk 0:00:38.5]} 21... a4 {[%clk 0:01:31.7]} 22. c5
{[%clk 0:00:38.4]} 22... Ba7 {[%clk 0:01:28.9]} 23. Bd1 {[%clk 0:00:34]} 23...
Rxg3 {[%clk 0:01:24.7]} 24. hxg3 {[%clk 0:00:33.5]} 24... Qxg3 {[%clk
0:01:25.6]} 25. Qh2 {[%clk 0:00:31.1]} 25... Qxe3 {[%clk 0:01:23.5]} 26. Bh5
{[%clk 0:00:25]} 26... Rg3 {[%clk 0:01:21.4]} 27. Ng2 {[%clk 0:00:15.4]} 27...
Qb3 {[%clk 0:01:14.8]} 28. Rfb1 {[%clk 0:00:13.5]} 28... Qc3 {[%clk 0:01:11.4]}
29. Rc1 {[%clk 0:00:13.4]} 29... Qb3 {[%clk 0:01:08.2]} 30. Rcb1 {[%clk
0:00:13.1]} 30... Qc3 {[%clk 0:00:58.7]} 31. Rc1 {[%clk 0:00:04.6]} 31... Qb3
{[%clk 0:00:58.4]} 32. Rcb1 {[%clk 0:00:04.7]} 1/2-1/2

[Event "Early-Titled-Tuesday-Blitz-September-12-2023"]
[Site "Chess.com"]
[Date "2023.09.12"]
[Round "11"]
[White "Jaka_Brilej"]
[Black "giomar27"]
[Result "1-0"]
[WhiteElo "2425"]
[BlackElo "2247"]
[TimeControl "180+1"]
[EndTime "10:04:59 PDT"]
[Termination "Jaka_Brilej won on time"]

1. d4 {[%clk 0:03:00.9]} 1... Nf6 {[%clk 0:02:50.7]} 2. Bg5 {[%clk 0:03:00]}
2... Ne4 {[%clk 0:02:40.6]} 3. h4 {[%clk 0:02:59.2]} 3... c5 {[%clk 0:02:34.4]}
4. dxc5 {[%clk 0:02:56.3]} 4... Qa5+ {[%clk 0:02:30.2]} 5. Nd2 {[%clk
0:02:54.9]} 5... Nxg5 {[%clk 0:02:29.8]} 6. hxg5 {[%clk 0:02:54]} 6... Qxc5
{[%clk 0:02:30.5]} 7. g6 {[%clk 0:02:54.4]} 7... fxg6 {[%clk 0:02:29.3]} 8. e3
{[%clk 0:02:54.9]} 8... e6 {[%clk 0:02:21.8]} 9. Bd3 {[%clk 0:02:54.3]} 9... Nc6
{[%clk 0:02:01.4]} 10. Rxh7 {[%clk 0:02:51.9]} 10... Rxh7 {[%clk 0:02:00.6]} 11.
Bxg6+ {[%clk 0:02:52.4]} 11... Kd8 {[%clk 0:02:01.1]} 12. Bxh7 {[%clk 0:02:53]}
12... b6 {[%clk 0:01:58.6]} 13. Ngf3 {[%clk 0:02:48]} 13... Ba6 {[%clk
0:01:56.3]} 14. Nb3 {[%clk 0:02:42.6]} 14... Qh5 {[%clk 0:01:52.1]} 15. Bd3
{[%clk 0:02:39.3]} 15... Bb7 {[%clk 0:01:27]} 16. Qe2 {[%clk 0:02:35.1]} 16...
Qg4 {[%clk 0:01:09.9]} 17. O-O-O {[%clk 0:02:22.5]} 17... Nb4 {[%clk 0:00:59.3]}
18. Ne5 {[%clk 0:02:15.1]} 18... Qg5 {[%clk 0:00:45.3]} 19. f4 {[%clk
0:02:10.2]} 19... Qxg2 {[%clk 0:00:36.8]} 20. Qxg2 {[%clk 0:02:09.1]} 20... Bxg2
{[%clk 0:00:37.7]} 21. Nxd7 {[%clk 0:01:53.4]} 21... Kxd7 {[%clk 0:00:21.7]} 22.
Be4+ {[%clk 0:01:53.1]} 22... Kc7 {[%clk 0:00:22]} 23. Bxg2 {[%clk 0:01:52.7]}
23... Rc8 {[%clk 0:00:20.1]} 24. a3 {[%clk 0:01:52.1]} 24... Nc6 {[%clk
0:00:19]} 25. Bxc6 {[%clk 0:01:46.7]} 25... Kxc6 {[%clk 0:00:16.4]} 26. Nd4+
{[%clk 0:01:47.3]} 26... Kd5 {[%clk 0:00:15.4]} 27. Nb5+ {[%clk 0:01:39.6]}
27... Ke4 {[%clk 0:00:14.6]} 28. Nxa7 {[%clk 0:01:39.2]} 28... Rc5 {[%clk
0:00:12]} 29. Rd3 {[%clk 0:01:27.4]} 29... Rh5 {[%clk 0:00:12]} 30. b4 {[%clk
0:01:25.2]} 30... g5 {[%clk 0:00:08.2]} 31. fxg5 {[%clk 0:01:22.5]} 31... Rxg5
{[%clk 0:00:09.1]} 32. Nc8 {[%clk 0:01:22.7]} 32... Rg1+ {[%clk 0:00:07.3]} 33.
Kb2 {[%clk 0:01:22.1]} 33... Bg7+ {[%clk 0:00:06.7]} 34. Kb3 {[%clk 0:01:22.1]}
34... b5 {[%clk 0:00:04.3]} 35. Nd6+ {[%clk 0:01:21.4]} 35... Kf3 {[%clk
0:00:04.5]} 36. Nxb5 {[%clk 0:01:22.3]} 36... Ke2 {[%clk 0:00:04.2]} 37. Nd4+
{[%clk 0:01:21.6]} 37... Kf2 {[%clk 0:00:01.2]} 38. Nxe6 {[%clk 0:01:20]} 1-0

[Event "Early-Titled-Tuesday-Blitz-September-12-2023"]
[Site "Chess.com"]
[Date "2023.09.12"]
[Round "11"]
[White "stollenmonster"]
[Black "Agibileg"]
[Result "1-0"]
[WhiteElo "2821"]
[BlackElo "2650"]
[TimeControl "180+1"]
[EndTime "10:05:00 PDT"]
[Termination "stollenmonster won by resignation"]

1. e4 {[%clk 0:03:00.9]} 1... e5 {[%clk 0:02:59.5]} 2. Nc3 {[%clk 0:02:59.6]}
2... Nc6 {[%clk 0:02:58.4]} 3. g3 {[%clk 0:02:59.7]} 3... Nf6 {[%clk 0:02:50.9]}
4. Bg2 {[%clk 0:03:00.1]} 4... Bc5 {[%clk 0:02:50.4]} 5. h3 {[%clk 0:03:00]}
5... a6 {[%clk 0:02:50.4]} 6. Nge2 {[%clk 0:03:00.3]} 6... O-O {[%clk
0:02:50.6]} 7. d3 {[%clk 0:03:00.3]} 7... b5 {[%clk 0:02:51.1]} 8. a3 {[%clk
0:03:00]} 8... Bb7 {[%clk 0:02:50.9]} 9. O-O {[%clk 0:03:00.3]} 9... Nd4 {[%clk
0:02:50.5]} 10. Kh2 {[%clk 0:02:57.2]} 10... d5 {[%clk 0:02:47.1]} 11. f4 {[%clk
0:02:54.7]} 11... Nxe2 {[%clk 0:02:38.9]} 12. Qxe2 {[%clk 0:02:55.6]} 12... exf4
{[%clk 0:02:38.4]} 13. Bxf4 {[%clk 0:02:53.1]} 13... dxe4 {[%clk 0:02:38.7]} 14.
dxe4 {[%clk 0:02:53.2]} 14... Nd7 {[%clk 0:02:29.4]} 15. Rad1 {[%clk 0:02:45.4]}
15... Bd6 {[%clk 0:02:29.6]} 16. e5 {[%clk 0:02:40.8]} 16... Bxg2 {[%clk
0:02:28]} 17. Qxg2 {[%clk 0:02:35.9]} 17... Be7 {[%clk 0:02:26.7]} 18. Qc6
{[%clk 0:02:31.4]} 18... Nxe5 {[%clk 0:02:26]} 19. Bxe5 {[%clk 0:02:30.8]} 19...
Qe8 {[%clk 0:02:26.1]} 20. Qf3 {[%clk 0:02:09.3]} 20... f6 {[%clk 0:02:13.3]}
21. Bxc7 {[%clk 0:02:07.2]} 21... Rc8 {[%clk 0:02:13.5]} 22. Nd5 {[%clk
0:02:06.7]} 22... Bc5 {[%clk 0:02:13.6]} 23. Bf4 {[%clk 0:02:04]} 23... Kh8
{[%clk 0:02:03.7]} 24. c3 {[%clk 0:02:00.2]} 24... a5 {[%clk 0:01:59]} 25. Be3
{[%clk 0:01:49.3]} 25... Bd6 {[%clk 0:01:55.5]} 26. Rfe1 {[%clk 0:01:44.2]}
26... Qc6 {[%clk 0:01:52.8]} 27. Kg2 {[%clk 0:01:40.3]} 27... Rcd8 {[%clk
0:01:32.5]} 28. Nf4 {[%clk 0:01:34.1]} 28... Qc4 {[%clk 0:01:25.2]} 29. Bf2
{[%clk 0:01:31.7]} 29... Be5 {[%clk 0:01:19.1]} 30. Rxd8 {[%clk 0:01:22.9]}
30... Rxd8 {[%clk 0:01:20]} 31. Rd1 {[%clk 0:01:23.3]} 31... Re8 {[%clk
0:01:15.3]} 32. Qd5 {[%clk 0:01:17.6]} 32... Qc8 {[%clk 0:01:15.6]} 33. Nd3
{[%clk 0:01:12.5]} 33... Bc7 {[%clk 0:01:10.2]} 34. Nc5 {[%clk 0:01:09]} 34...
b4 {[%clk 0:01:09.8]} 35. axb4 {[%clk 0:01:08.4]} 35... axb4 {[%clk 0:01:10.7]}
36. cxb4 {[%clk 0:01:08.7]} 36... h6 {[%clk 0:01:10.3]} 37. Qf3 {[%clk
0:01:03.2]} 37... Be5 {[%clk 0:01:02.6]} 38. Rd7 {[%clk 0:01:01.7]} 38... Bxb2
{[%clk 0:01:00.3]} 39. Qb7 {[%clk 0:00:58.2]} 39... Qxb7+ {[%clk 0:00:58.1]} 40.
Nxb7 {[%clk 0:00:54.1]} 40... Re2 {[%clk 0:00:59]} 41. Kf3 {[%clk 0:00:53.8]}
41... Rc2 {[%clk 0:00:59.3]} 42. b5 {[%clk 0:00:47.6]} 42... Rc3+ {[%clk
0:00:59.6]} 43. Ke4 {[%clk 0:00:44]} 43... Rb3 {[%clk 0:01:00.5]} 44. b6 {[%clk
0:00:41]} 44... Rxb6 {[%clk 0:00:59.2]} 45. Bxb6 {[%clk 0:00:40.4]} 1-0

[Event "Early-Titled-Tuesday-Blitz-September-12-2023"]
[Site "Chess.com"]
[Date "2023.09.12"]
[Round "11"]
[White "FARIZA2018"]
[Black "C_K_G"]
[Result "1-0"]
[WhiteElo "2499"]
[BlackElo "2009"]
[TimeControl "180+1"]
[EndTime "10:05:01 PDT"]
[Termination "FARIZA2018 won on time"]

1. e4 {[%clk 0:03:00.9]} 1... c5 {[%clk 0:02:58.8]} 2. Nf3 {[%clk 0:03:00.9]}
2... d6 {[%clk 0:02:59.3]} 3. d4 {[%clk 0:03:01]} 3... cxd4 {[%clk 0:03:00]} 4.
Nxd4 {[%clk 0:03:01.4]} 4... Nf6 {[%clk 0:03:00.5]} 5. Nc3 {[%clk 0:03:01.6]}
5... a6 {[%clk 0:03:01]} 6. Be2 {[%clk 0:02:59.6]} 6... e5 {[%clk 0:03:01.3]} 7.
Nb3 {[%clk 0:02:59.7]} 7... Be6 {[%clk 0:02:59.6]} 8. O-O {[%clk 0:02:59.6]}
8... Be7 {[%clk 0:03:00]} 9. Kh1 {[%clk 0:02:58.4]} 9... Nbd7 {[%clk 0:03:00.2]}
10. f4 {[%clk 0:02:58.1]} 10... exf4 {[%clk 0:02:58.3]} 11. Bxf4 {[%clk
0:02:57.9]} 11... Ne5 {[%clk 0:02:56.5]} 12. Nd4 {[%clk 0:02:57.5]} 12... Bd7
{[%clk 0:02:35.4]} 13. Nf5 {[%clk 0:02:50.8]} 13... Bxf5 {[%clk 0:02:31.3]} 14.
exf5 {[%clk 0:02:50.8]} 14... O-O {[%clk 0:02:31.1]} 15. Qe1 {[%clk 0:02:43.9]}
15... Rc8 {[%clk 0:02:28.6]} 16. Rd1 {[%clk 0:02:43.2]} 16... Qc7 {[%clk
0:02:27]} 17. Qg3 {[%clk 0:02:39.2]} 17... Kh8 {[%clk 0:02:13.6]} 18. Bg5 {[%clk
0:02:28.3]} 18... Qb6 {[%clk 0:01:34.1]} 19. Bxf6 {[%clk 0:02:00.3]} 19... Bxf6
{[%clk 0:01:32.6]} 20. Nd5 {[%clk 0:02:00.5]} 20... Qxb2 {[%clk 0:01:00.7]} 21.
Nxf6 {[%clk 0:01:57.8]} 21... gxf6 {[%clk 0:01:01.6]} 22. Qh4 {[%clk 0:01:41.4]}
22... Nc6 {[%clk 0:00:24.6]} 23. Rxd6 {[%clk 0:01:20]} 23... Rcd8 {[%clk
0:00:15.7]} 24. Rxf6 {[%clk 0:01:12.6]} 24... Qxc2 {[%clk 0:00:13.3]} 25. Rh6
{[%clk 0:01:07.2]} 25... Qb2 {[%clk 0:00:03.3]} 26. Rxh7+ {[%clk 0:01:06.6]}
26... Kg8 {[%clk 0:00:03.5]} 27. f6 {[%clk 0:01:03.7]} 1-0

[Event "Early-Titled-Tuesday-Blitz-September-12-2023"]
[Site "Chess.com"]
[Date "2023.09.12"]
[Round "11"]
[White "wannabe2700"]
[Black "marik_spb"]
[Result "1-0"]
[WhiteElo "2618"]
[BlackElo "2457"]
[TimeControl "180+1"]
[EndTime "10:05:08 PDT"]
[Termination "wannabe2700 won on time"]

1. b3 {[%clk 0:03:00.9]} 1... Nf6 {[%clk 0:02:59.1]} 2. Bb2 {[%clk 0:03:01.8]}
2... g6 {[%clk 0:02:59.7]} 3. Nf3 {[%clk 0:03:01.2]} 3... Bg7 {[%clk 0:02:59.9]}
4. g3 {[%clk 0:03:01.6]} 4... O-O {[%clk 0:03:00.4]} 5. Bg2 {[%clk 0:03:01.9]}
5... d5 {[%clk 0:03:01]} 6. c4 {[%clk 0:03:02.1]} 6... e6 {[%clk 0:02:38.9]} 7.
O-O {[%clk 0:03:01.7]} 7... c5 {[%clk 0:02:38.8]} 8. cxd5 {[%clk 0:03:01.3]}
8... exd5 {[%clk 0:02:38.7]} 9. d4 {[%clk 0:03:01.3]} 9... c4 {[%clk 0:02:29.4]}
10. bxc4 {[%clk 0:03:00.5]} 10... dxc4 {[%clk 0:02:30.3]} 11. Nc3 {[%clk
0:03:00.6]} 11... Nc6 {[%clk 0:02:25.8]} 12. e4 {[%clk 0:02:59.8]} 12... Bg4
{[%clk 0:02:18.6]} 13. e5 {[%clk 0:02:46.4]} 13... Ne8 {[%clk 0:01:37]} 14. Ba3
{[%clk 0:02:41.7]} 14... Bxf3 {[%clk 0:01:30.6]} 15. Bxf3 {[%clk 0:02:40.4]}
15... Nxd4 {[%clk 0:01:27.6]} 16. Bxb7 {[%clk 0:02:39.2]} 16... Rb8 {[%clk
0:01:23.8]} 17. Bd5 {[%clk 0:02:37.4]} 17... Bxe5 {[%clk 0:01:22.3]} 18. Bxf8
{[%clk 0:02:35.4]} 18... Kxf8 {[%clk 0:01:23.2]} 19. Rb1 {[%clk 0:01:54.5]}
19... Rxb1 {[%clk 0:01:06.7]} 20. Qxb1 {[%clk 0:01:54.1]} 20... Nf6 {[%clk
0:00:50.9]} 21. Qb4+ {[%clk 0:01:52.7]} 21... Kg7 {[%clk 0:00:49.7]} 22. Qxc4
{[%clk 0:01:52.3]} 22... Qd7 {[%clk 0:00:32.4]} 23. Re1 {[%clk 0:01:35.2]} 23...
Qh3 {[%clk 0:00:18.5]} 24. Rxe5 {[%clk 0:01:34.1]} 24... Ng4 {[%clk 0:00:18]}
25. Qxd4 {[%clk 0:01:33]} 25... Qxh2+ {[%clk 0:00:17.5]} 26. Kf1 {[%clk
0:01:33.3]} 26... Nxe5 {[%clk 0:00:08.2]} 27. Qxe5+ {[%clk 0:01:32.3]} 27... Kh6
{[%clk 0:00:08.8]} 28. Bg2 {[%clk 0:01:23.6]} 28... f5 {[%clk 0:00:07]} 29. Ne2
{[%clk 0:01:12.9]} 29... Qh5 {[%clk 0:00:06.6]} 30. f4 {[%clk 0:01:10.2]} 30...
Qg4 {[%clk 0:00:05.2]} 31. Kf2 {[%clk 0:01:07.1]} 31... a6 {[%clk 0:00:03.9]}
32. Qf6 {[%clk 0:01:04]} 32... a5 {[%clk 0:00:02]} 33. Bf3 {[%clk 0:01:00.3]}
1-0

[Event "Early-Titled-Tuesday-Blitz-September-12-2023"]
[Site "Chess.com"]
[Date "2023.09.12"]
[Round "11"]
[White "parintele_chess"]
[Black "falzehope0"]
[Result "1-0"]
[WhiteElo "2261"]
[BlackElo "2398"]
[TimeControl "180+1"]
[EndTime "10:05:13 PDT"]
[Termination "parintele_chess won by resignation"]

1. d4 {[%clk 0:03:00.9]} 1... e6 {[%clk 0:02:55.2]} 2. Bf4 {[%clk 0:02:58.6]}
2... d5 {[%clk 0:02:54.8]} 3. e3 {[%clk 0:02:57.3]} 3... Bd6 {[%clk 0:02:46.2]}
4. Nf3 {[%clk 0:02:56.7]} 4... Ne7 {[%clk 0:02:44]} 5. Bg3 {[%clk 0:02:50.2]}
5... Ng6 {[%clk 0:02:42.6]} 6. Bd3 {[%clk 0:02:48.4]} 6... f5 {[%clk 0:02:42.4]}
7. Nbd2 {[%clk 0:02:45.8]} 7... O-O {[%clk 0:02:41.5]} 8. Ne5 {[%clk 0:02:26]}
8... Bxe5 {[%clk 0:02:36]} 9. dxe5 {[%clk 0:02:25.8]} 9... f4 {[%clk 0:02:29]}
10. Bxg6 {[%clk 0:02:22.1]} 10... fxg3 {[%clk 0:02:28.1]} 11. Bxh7+ {[%clk
0:02:08.7]} 11... Kxh7 {[%clk 0:02:25.3]} 12. hxg3+ {[%clk 0:02:08.1]} 12... Kg8
{[%clk 0:02:24]} 13. Qh5 {[%clk 0:02:07.7]} 13... Qe8 {[%clk 0:02:08.8]} 14.
Qh7+ {[%clk 0:02:05.7]} 14... Kf7 {[%clk 0:02:08.9]} 15. Nf3 {[%clk 0:02:00.8]}
15... Ke7 {[%clk 0:02:00.3]} 16. Ng5 {[%clk 0:01:40.3]} 16... Rg8 {[%clk
0:01:38.1]} 17. O-O-O {[%clk 0:01:38.8]} 17... Nc6 {[%clk 0:01:25.1]} 18. e4
{[%clk 0:01:38.8]} 18... d4 {[%clk 0:01:18.6]} 19. Qh4 {[%clk 0:01:32.4]} 19...
Kd7 {[%clk 0:01:09.1]} 20. Nf3 {[%clk 0:01:30]} 20... Qe7 {[%clk 0:01:04.5]} 21.
Qh7 {[%clk 0:01:26.3]} 21... Rf8 {[%clk 0:00:59.9]} 22. Nxd4 {[%clk 0:01:25.3]}
22... Ke8 {[%clk 0:00:58.2]} 23. Nb5 {[%clk 0:01:07.7]} 23... a6 {[%clk
0:00:49.5]} 24. Qg6+ {[%clk 0:01:01.3]} 24... Qf7 {[%clk 0:00:45.7]} 25. Nxc7+
{[%clk 0:00:52.6]} 25... Ke7 {[%clk 0:00:44.5]} 26. Qg5+ {[%clk 0:00:48.1]}
26... Qf6 {[%clk 0:00:35.8]} 27. exf6+ {[%clk 0:00:47]} 27... gxf6 {[%clk
0:00:34.6]} 28. Rh7+ {[%clk 0:00:16.9]} 28... Rf7 {[%clk 0:00:34.5]} 29. Qg8
{[%clk 0:00:15.5]} 29... Bd7 {[%clk 0:00:31.5]} 30. Qxf7+ {[%clk 0:00:14.4]}
30... Kd8 {[%clk 0:00:30.5]} 1-0

[Event "Early-Titled-Tuesday-Blitz-September-12-2023"]
[Site "Chess.com"]
[Date "2023.09.12"]
[Round "11"]
[White "Aash20"]
[Black "crazy_but_lazy"]
[Result "1/2-1/2"]
[WhiteElo "2535"]
[BlackElo "2640"]
[TimeControl "180+1"]
[EndTime "10:05:16 PDT"]
[Termination "Game drawn by repetition"]

1. e4 {[%clk 0:03:00.9]} 1... c5 {[%clk 0:02:56.3]} 2. Nf3 {[%clk 0:03:00.3]}
2... Nc6 {[%clk 0:02:55.3]} 3. Bb5 {[%clk 0:03:00]} 3... e6 {[%clk 0:02:53.1]}
4. O-O {[%clk 0:02:58.4]} 4... Nge7 {[%clk 0:02:53]} 5. d4 {[%clk 0:02:57.8]}
5... cxd4 {[%clk 0:02:50.4]} 6. Nxd4 {[%clk 0:02:57.4]} 6... Qb6 {[%clk
0:02:43.9]} 7. Bxc6 {[%clk 0:02:55.8]} 7... Nxc6 {[%clk 0:02:43.3]} 8. Nf3
{[%clk 0:02:55.1]} 8... Qc7 {[%clk 0:02:33]} 9. b3 {[%clk 0:02:54.8]} 9... b6
{[%clk 0:02:23.8]} 10. Bb2 {[%clk 0:02:53.4]} 10... Bb7 {[%clk 0:02:24.1]} 11.
c4 {[%clk 0:02:52.8]} 11... Bd6 {[%clk 0:02:18.2]} 12. Nc3 {[%clk 0:02:45]}
12... a6 {[%clk 0:02:18.1]} 13. Re1 {[%clk 0:02:42.6]} 13... Ne5 {[%clk
0:02:10.7]} 14. Nd4 {[%clk 0:02:34.6]} 14... Bc5 {[%clk 0:02:05.2]} 15. Qd2
{[%clk 0:02:16.1]} 15... O-O {[%clk 0:01:52.9]} 16. Rad1 {[%clk 0:02:15]} 16...
Rad8 {[%clk 0:01:50.6]} 17. Qg5 {[%clk 0:02:04]} 17... f6 {[%clk 0:01:49.4]} 18.
Qg3 {[%clk 0:02:03.6]} 18... Qb8 {[%clk 0:01:39.4]} 19. Qh3 {[%clk 0:01:54.7]}
19... Ng6 {[%clk 0:01:35.6]} 20. Na4 {[%clk 0:01:49]} 20... Bb4 {[%clk
0:01:28.2]} 21. Re3 {[%clk 0:01:45.8]} 21... b5 {[%clk 0:01:19.2]} 22. cxb5
{[%clk 0:01:45.2]} 22... axb5 {[%clk 0:01:20.1]} 23. Nc3 {[%clk 0:01:36.6]}
23... Bc5 {[%clk 0:01:16.3]} 24. Ree1 {[%clk 0:01:27]} 24... Ba6 {[%clk
0:00:39.5]} 25. Nxe6 {[%clk 0:01:18.4]} 25... dxe6 {[%clk 0:00:24.2]} 26. Qxe6+
{[%clk 0:01:17.5]} 26... Kh8 {[%clk 0:00:24.9]} 27. Qxa6 {[%clk 0:01:16.2]}
27... Qf4 {[%clk 0:00:24.7]} 28. Rf1 {[%clk 0:01:12.2]} 28... Nh4 {[%clk
0:00:21.6]} 29. Rxd8 {[%clk 0:01:07.2]} 29... Rxd8 {[%clk 0:00:20.5]} 30. Qxb5
{[%clk 0:01:01.4]} 30... Bd6 {[%clk 0:00:13.4]} 31. g3 {[%clk 0:00:54.7]} 31...
Qf3 {[%clk 0:00:08.5]} 32. gxh4 {[%clk 0:00:51.3]} 32... Qg4+ {[%clk 0:00:08.9]}
33. Kh1 {[%clk 0:00:50.9]} 33... Qf3+ {[%clk 0:00:08.1]} 34. Kg1 {[%clk
0:00:50.7]} 34... Qg4+ {[%clk 0:00:07.6]} 35. Kh1 {[%clk 0:00:51.1]} 35... Qf3+
{[%clk 0:00:06.3]} 36. Kg1 {[%clk 0:00:51.3]} 1/2-1/2

[Event "Early-Titled-Tuesday-Blitz-September-12-2023"]
[Site "Chess.com"]
[Date "2023.09.12"]
[Round "11"]
[White "PeshkaCh"]
[Black "Fh2411"]
[Result "1-0"]
[WhiteElo "2781"]
[BlackElo "2603"]
[TimeControl "180+1"]
[EndTime "10:05:17 PDT"]
[Termination "PeshkaCh won by resignation"]

1. Nf3 {[%clk 0:03:00.9]} 1... Nf6 {[%clk 0:02:52.1]} 2. d4 {[%clk 0:03:00.7]}
2... e6 {[%clk 0:02:52.3]} 3. c4 {[%clk 0:03:00.7]} 3... Bb4+ {[%clk 0:02:51.4]}
4. Bd2 {[%clk 0:03:00.9]} 4... Qe7 {[%clk 0:02:48.7]} 5. g3 {[%clk 0:03:01.2]}
5... O-O {[%clk 0:02:49]} 6. Bg2 {[%clk 0:03:01.9]} 6... Bxd2+ {[%clk
0:02:44.7]} 7. Nbxd2 {[%clk 0:03:00.5]} 7... d6 {[%clk 0:02:45.2]} 8. O-O {[%clk
0:03:01.1]} 8... e5 {[%clk 0:02:45.7]} 9. e4 {[%clk 0:02:53.4]} 9... a5 {[%clk
0:02:36.3]} 10. c5 {[%clk 0:02:51.1]} 10... Rd8 {[%clk 0:02:30.3]} 11. cxd6
{[%clk 0:02:49.6]} 11... cxd6 {[%clk 0:02:31.2]} 12. dxe5 {[%clk 0:02:49.9]}
12... dxe5 {[%clk 0:02:30.8]} 13. Qe2 {[%clk 0:02:40.6]} 13... Nc6 {[%clk
0:02:28.7]} 14. Nc4 {[%clk 0:02:36.7]} 14... Bg4 {[%clk 0:02:29.2]} 15. Qe3
{[%clk 0:02:36.5]} 15... Bxf3 {[%clk 0:02:13.7]} 16. Bxf3 {[%clk 0:02:29.9]}
16... b5 {[%clk 0:02:13]} 17. Nb6 {[%clk 0:02:20.3]} 17... Rab8 {[%clk
0:02:06.1]} 18. Nd5 {[%clk 0:02:19.5]} 18... Qe6 {[%clk 0:02:04.1]} 19. Rac1
{[%clk 0:02:10.8]} 19... Nd4 {[%clk 0:02:02.9]} 20. Bg2 {[%clk 0:02:10.6]} 20...
Rdc8 {[%clk 0:01:48]} 21. Rfd1 {[%clk 0:02:03.5]} 21... h6 {[%clk 0:01:44.7]}
22. h3 {[%clk 0:01:51.8]} 22... b4 {[%clk 0:01:40.2]} 23. Kh2 {[%clk 0:01:48.9]}
23... Kh7 {[%clk 0:01:36.2]} 24. Qd3 {[%clk 0:01:44.5]} 24... Rxc1 {[%clk
0:01:29.1]} 25. Rxc1 {[%clk 0:01:44.1]} 25... Rc8 {[%clk 0:01:29.3]} 26. Rc4
{[%clk 0:01:17.6]} 26... Rc6 {[%clk 0:01:20.6]} 27. Rxd4 {[%clk 0:01:12.4]}
27... exd4 {[%clk 0:01:19.4]} 28. e5+ {[%clk 0:01:11.4]} 28... Kh8 {[%clk
0:01:11.2]} 29. exf6 {[%clk 0:01:11]} 29... Rc1 {[%clk 0:01:04.8]} 30. fxg7+
{[%clk 0:01:07.8]} 30... Kxg7 {[%clk 0:01:05.7]} 31. Qxd4+ {[%clk 0:01:07.8]}
31... f6 {[%clk 0:00:58.6]} 32. Nf4 {[%clk 0:00:38.3]} 32... Qe5 {[%clk
0:00:29.9]} 33. Qd7+ {[%clk 0:00:35.6]} 33... Kg8 {[%clk 0:00:20.6]} 34. Bd5+
{[%clk 0:00:35.2]} 1-0